fUSD/lending_fUSD_20240729
["ID","MTS","AMOUNT","RATE_DAILY","PERIOD"]
[333504464,1722219032866,-184.98601129,0.0001077,2]
[333504465,1722219032876,-171.70477311,0.0001077,2]
[333504466,1722219032885,-2243.10024243,0.00010773,2]
[333504467,1722219032895,-419.8759285,0.00010776,2]
[333504468,1722219032905,-2243.10024243,0.00010784,2]
[333504469,1722219032914,-2243.10024243,0.00010794,2]
[333504470,1722219032923,-222.29,0.00010795,3]
[333504471,1722219032932,-3178.93963072,0.00010799,2]
[333504472,1722219032942,-2243.10024243,0.00010805,2]
[333504473,1722219032951,-2243.10024243,0.00010815,2]
[333504474,1722219032961,-387.77289864,0.00010819,2]
[333504475,1722219032971,-2243.10024243,0.00010826,2]
[333504476,1722219032980,-596.1947099,0.00010835,2]
[333504477,1722219032989,-2243.10024243,0.00010837,2]
[333504478,1722219032999,-2243.10024243,0.00010847,2]
[333504479,1722219033008,-190.53177105,0.00010848,2]
[333504480,1722219033017,-1046.09910885,0.00010851,2]
[333504481,1722219033027,-151.0,0.00010851,2]
[333504482,1722219033037,-151.0,0.00010851,2]
[333504483,1722219033047,-349.223995,0.00010851,2]
[333504484,1722219033056,-349.223995,0.00010851,2]
[333504485,1722219033065,-151.0,0.00010851,2]
[333504486,1722219033075,-151.798935,0.00010851,2]
[333504487,1722219033084,-195.292619,0.00010851,2]
[333504488,1722219033094,-195.292619,0.00010851,2]
[333504489,1722219033103,-151.0,0.00010851,2]
[333504490,1722219033113,-151.0,0.00010851,2]
[333504491,1722219033122,-151.0,0.00010851,2]
[333504492,1722219033132,-151.0,0.00010851,2]
[333504493,1722219033141,-151.0,0.00010851,2]
[333504494,1722219033151,-151.112905,0.00010851,2]
[333504495,1722219033161,-152.921278,0.00010851,2]
[333504496,1722219033170,-195.597906,0.00010851,2]
[333504497,1722219033180,-195.597906,0.00010851,2]
[333504498,1722219033189,-151.0,0.00010851,2]
[333504499,1722219033199,-152.859303,0.00010851,2]
[333504500,1722219033208,-151.0,0.00010851,2]
[333504501,1722219033218,-151.0,0.00010851,2]
[333504502,1722219033227,-151.0,0.00010851,2]
[333504503,1722219033237,-151.0,0.00010851,2]
[333504504,1722219033247,-151.0,0.00010851,2]
[333504505,1722219033257,-195.100732,0.00010851,2]
[333504506,1722219033266,-195.100732,0.00010851,2]
[333504507,1722219033275,-182.478561,0.00010851,2]
[333504508,1722219033284,-151.90285,0.00010851,2]
[333504509,1722219033293,-151.0,0.00010851,2]
[333504510,1722219033303,-151.0,0.00010851,2]
[333504511,1722219033312,-182.478561,0.00010851,2]
[333504512,1722219033322,-151.0,0.00010851,2]
[333504513,1722219033332,-151.0,0.00010851,2]
[333504514,1722219033342,-151.0,0.00010851,2]
[333504515,1722219033354,-151.0,0.00010851,2]
[333504516,1722219033365,-168.825362,0.00010851,2]
[333504517,1722219033375,-168.825362,0.00010851,2]
[333504518,1722219033384,-432.242104,0.00010851,2]
[333504519,1722219033394,-432.242104,0.00010851,2]
[333504520,1722219033402,-151.0,0.00010851,2]
[333504521,1722219033412,-151.0,0.00010851,2]
[333504522,1722219033421,-151.0,0.00010851,2]
[333504523,1722219033431,-151.0,0.00010851,2]
[333504524,1722219033440,-151.0,0.00010851,2]
[333504525,1722219033449,-151.0,0.00010851,2]
[333504526,1722219033458,-151.0,0.00010851,2]
[333504527,1722219033468,-151.0,0.00010851,2]
[333504528,1722219033477,-151.0,0.00010851,2]
[333504529,1722219033486,-151.0,0.00010851,2]
[333504530,1722219033495,-151.0,0.00010851,2]
[333504531,1722219033504,-151.0,0.00010851,2]
[333504532,1722219033513,-357.373336,0.00010851,2]
[333504533,1722219033522,-357.373336,0.00010851,2]
[333504534,1722219033531,-151.0,0.00010851,2]
[333504535,1722219033540,-151.0,0.00010851,2]
[333504536,1722219033549,-151.173708,0.00010851,2]
[333504537,1722219033559,-151.0,0.00010851,2]
[333504538,1722219033568,-153.02572,0.00010851,2]
[333504539,1722219033577,-151.201945,0.00010851,2]
[333504540,1722219033586,-189.339945,0.00010851,2]
[333504541,1722219033595,-151.0,0.00010851,2]
[333504542,1722219033607,-189.339945,0.00010851,2]
[333504543,1722219033616,-151.287019,0.00010851,2]
[333504544,1722219033625,-1390.614502,0.00010851,2]
[333504545,1722219033635,-243.193316,0.00010851,2]
[333504546,1722219033644,-151.0,0.00010851,2]
[333504547,1722219033654,-1390.614502,0.00010851,2]
[333504548,1722219033663,-151.0,0.00010851,2]
[333504549,1722219033672,-334.045691,0.00010851,2]
[333504550,1722219033681,-151.0,0.00010851,2]
[333504551,1722219033691,-151.0,0.00010851,2]
[333504552,1722219033700,-151.0,0.00010851,2]
[333504553,1722219033710,-151.0,0.00010851,2]
[333504554,1722219033719,-273.799616,0.00010851,2]
[333504555,1722219033728,-298.5941,0.00010851,2]
[333504556,1722219033739,-273.799616,0.00010851,2]
[333504557,1722219033750,-153.712598,0.00010851,2]
[333504558,1722219033759,-151.0,0.00010851,2]
[333504559,1722219033769,-151.0,0.00010851,2]
[333504560,1722219033779,-350.0978,0.00010851,2]
[333504561,1722219033790,-350.0978,0.00010851,2]
[333504562,1722219033799,-405.635564,0.00010851,2]
[333504563,1722219033809,-405.635564,0.00010851,2]
[333504564,1722219033820,-151.0,0.00010851,2]
[333504565,1722219033830,-153.117001,0.00010851,2]
[333504566,1722219033839,-281.729051,0.00010851,2]
[333504567,1722219033849,-281.729051,0.00010851,2]
[333504568,1722219033858,-151.0,0.00010851,2]
[333504569,1722219033868,-151.641721,0.00010851,2]
[333504570,1722219033877,-357.935926,0.00010851,2]
[333504571,1722219033887,-357.935926,0.00010851,2]
[333504572,1722219033897,-151.0,0.00010851,2]
[333504573,1722219033907,-366100.260142,0.00010851,2]
[333504574,1722219033916,-1046.09910885,0.00010852,2]
[333504575,1722219033926,-211.17501626,0.00010853,2]
[333504576,1722219033936,-300.70513388,0.00010853,2]
[333504577,1722219033946,-53505.46268201,0.00010854,2]
[333504578,1722219033955,-2243.10024243,0.00010858,2]
[333504579,1722219033965,-194.16932683,0.0001086,2]
[333504580,1722219033975,-1046.09910885,0.00010861,2]
[333504581,1722219033984,-300.70513388,0.00010862,2]
[333504582,1722219033994,-194.16932683,0.00010863,2]
[333504583,1722219034003,-230.733356,0.00010865,2]
[333504584,1722219034012,-151.0,0.00010865,2]
[333504585,1722219034215,-349.223995,0.00010865,2]
[333504586,1722219034224,-349.223995,0.00010865,2]
[333504587,1722219034234,-185.484745,0.00010865,2]
[333504588,1722219034243,-195.292619,0.00010865,2]
[333504589,1722219034252,-195.292619,0.00010865,2]
[333504590,1722219034262,-151.0,0.00010865,2]
[333504591,1722219034271,-151.0,0.00010865,2]
[333504592,1722219034280,-151.0,0.00010865,2]
[333504593,1722219034290,-151.0,0.00010865,2]
[333504594,1722219034299,-195.597906,0.00010865,2]
[333504595,1722219034309,-195.597906,0.00010865,2]
[333504596,1722219034318,-151.0,0.00010865,2]
[333504597,1722219034327,-151.0,0.00010865,2]
[333504598,1722219034337,-151.0,0.00010865,2]
[333504599,1722219034346,-151.0,0.00010865,2]
[333504600,1722219034356,-151.0,0.00010865,2]
[333504601,1722219034366,-151.0,0.00010865,2]
[333504602,1722219034375,-195.100732,0.00010865,2]
[333504603,1722219034384,-195.100732,0.00010865,2]
[333504604,1722219034394,-182.478561,0.00010865,2]
[333504605,1722219034404,-151.0,0.00010865,2]
[333504606,1722219034414,-182.478561,0.00010865,2]
[333504607,1722219034423,-151.0,0.00010865,2]
[333504608,1722219034433,-151.0,0.00010865,2]
[333504609,1722219034442,-151.0,0.00010865,2]
[333504610,1722219034452,-159.884755,0.00010865,2]
[333504611,1722219034462,-151.0,0.00010865,2]
[333504612,1722219034471,-168.825362,0.00010865,2]
[333504613,1722219034481,-168.825362,0.00010865,2]
[333504614,1722219034490,-432.242104,0.00010865,2]
[333504615,1722219034499,-432.242104,0.00010865,2]
[333504616,1722219034508,-151.0,0.00010865,2]
[333504617,1722219034518,-154.360511,0.00010865,2]
[333504618,1722219034527,-151.0,0.00010865,2]
[333504619,1722219034536,-151.0,0.00010865,2]
[333504620,1722219034545,-151.0,0.00010865,2]
[333504621,1722219034554,-170.997538,0.00010865,2]
[333504622,1722219034563,-151.0,0.00010865,2]
[333504623,1722219034573,-152.428739,0.00010865,2]
[333504624,1722219034582,-151.0,0.00010865,2]
[333504625,1722219034591,-151.230158,0.00010865,2]
[333504626,1722219034600,-274.038793,0.00010865,2]
[333504627,1722219034610,-151.0,0.00010865,2]
[333504628,1722219034619,-357.373336,0.00010865,2]
[333504629,1722219034628,-357.373336,0.00010865,2]
[333504630,1722219034638,-151.0,0.00010865,2]
[333504631,1722219034648,-151.0,0.00010865,2]
[333504632,1722219034657,-151.0,0.00010865,2]
[333504633,1722219034666,-189.339945,0.00010865,2]
[333504634,1722219034675,-151.0,0.00010865,2]
[333504635,1722219034685,-189.339945,0.00010865,2]
[333504636,1722219034694,-1390.614502,0.00010865,2]
[333504637,1722219034704,-151.0,0.00010865,2]
[333504638,1722219034713,-1390.614502,0.00010865,2]
[333504639,1722219034722,-151.0,0.00010865,2]
[333504640,1722219034732,-334.045691,0.00010865,2]
[333504641,1722219034744,-151.0,0.00010865,2]
[333504642,1722219034753,-151.0,0.00010865,2]
[333504643,1722219034763,-153.20056,0.00010865,2]
[333504644,1722219034772,-151.0,0.00010865,2]
[333504645,1722219034783,-273.799616,0.00010865,2]
[333504646,1722219034792,-273.799616,0.00010865,2]
[333504647,1722219034801,-151.0,0.00010865,2]
[333504648,1722219034810,-151.0,0.00010865,2]
[333504649,1722219034821,-350.0978,0.00010865,2]
[333504650,1722219034830,-350.0978,0.00010865,2]
[333504651,1722219034839,-405.635564,0.00010865,2]
[333504652,1722219034849,-405.635564,0.00010865,2]
[333504653,1722219034859,-151.0,0.00010865,2]
[333504654,1722219034868,-281.729051,0.00010865,2]
[333504655,1722219034878,-281.729051,0.00010865,2]
[333504656,1722219034887,-151.0,0.00010865,2]
[333504657,1722219034898,-357.935926,0.00010865,2]
[333504658,1722219034908,-357.935926,0.00010865,2]
[333504659,1722219034918,-35189.08038893,0.00010866,2]
[333504660,1722219034934,-1622.15927746,0.00010866,2]
[333504661,1722219034954,-527.06338007,0.00010866,2]
[333504662,1722219034966,-1904.64529424,0.00010866,2]
[333504663,1722219034978,-845.39999995,0.00010866,2]
[333504664,1722219034990,-3476.12861861,0.00010866,2]
[333504665,1722219035003,-9940.98572275,0.00010866,2]
[333504666,1722219035013,-11398.91358778,0.00010867,2]
[333504667,1722219035023,-211.17501626,0.00010868,2]
[333504668,1722219035034,-2243.10024243,0.00010868,2]
[333504669,1722219035044,-151.0,0.00010869,2]
[333504670,1722219035054,-151.0,0.00010869,2]
[333504671,1722219035065,-151.0,0.00010869,2]
[333504672,1722219035075,-151.0,0.00010869,2]
[333504673,1722219035085,-349.223995,0.00010869,2]
[333504674,1722219035095,-349.223995,0.00010869,2]
[333504675,1722219035106,-195.292619,0.00010869,2]
[333504676,1722219035117,-195.292619,0.00010869,2]
[333504677,1722219035127,-151.0,0.00010869,2]
[333504678,1722219035137,-151.0,0.00010869,2]
[333504679,1722219035147,-151.0,0.00010869,2]
[333504680,1722219035159,-274.236151,0.00010869,2]
[333504681,1722219035169,-195.597906,0.00010869,2]
[333504682,1722219035179,-195.597906,0.00010869,2]
[333504683,1722219035189,-151.0,0.00010869,2]
[333504684,1722219035199,-151.0,0.00010869,2]
[333504685,1722219035209,-151.0,0.00010869,2]
[333504686,1722219035219,-151.0,0.00010869,2]
[333504687,1722219035230,-187.936749,0.00010869,2]
[333504688,1722219035240,-151.0,0.00010869,2]
[333504689,1722219035250,-195.100732,0.00010869,2]
[333504690,1722219035259,-182.478561,0.00010869,2]
[333504691,1722219035268,-151.0,0.00010869,2]
[333504692,1722219035277,-195.100732,0.00010869,2]
[333504693,1722219035287,-182.478561,0.00010869,2]
[333504694,1722219035296,-151.0,0.00010869,2]
[333504695,1722219035305,-151.0,0.00010869,2]
[333504696,1722219035314,-151.0,0.00010869,2]
[333504697,1722219035324,-151.0,0.00010869,2]
[333504698,1722219035334,-168.825362,0.00010869,2]
[333504699,1722219035343,-168.825362,0.00010869,2]
[333504700,1722219035353,-432.242104,0.00010869,2]
[333504701,1722219035363,-432.242104,0.00010869,2]
[333504702,1722219035373,-151.0,0.00010869,2]
[333504703,1722219035383,-151.0,0.00010869,2]
[333504704,1722219035393,-151.0,0.00010869,2]
[333504705,1722219035403,-151.0,0.00010869,2]
[333504706,1722219035413,-167.45372,0.00010869,2]
[333504707,1722219035422,-151.0,0.00010869,2]
[333504708,1722219035432,-151.270641,0.00010869,2]
[333504709,1722219035442,-357.373336,0.00010869,2]
[333504710,1722219035451,-152.390017,0.00010869,2]
[333504711,1722219035461,-151.0,0.00010869,2]
[333504712,1722219035470,-357.373336,0.00010869,2]
[333504713,1722219035480,-151.0,0.00010869,2]
[333504714,1722219035489,-189.339945,0.00010869,2]
[333504715,1722219035498,-151.0,0.00010869,2]
[333504716,1722219035507,-189.339945,0.00010869,2]
[333504717,1722219035517,-1390.614502,0.00010869,2]
[333504718,1722219035527,-151.0,0.00010869,2]
[333504719,1722219035536,-1390.614502,0.00010869,2]
[333504720,1722219035546,-151.0,0.00010869,2]
[333504721,1722219035555,-334.045691,0.00010869,2]
[333504722,1722219035565,-151.0,0.00010869,2]
[333504723,1722219035574,-151.0,0.00010869,2]
[333504724,1722219035583,-273.799616,0.00010869,2]
[333504725,1722219035593,-151.0,0.00010869,2]
[333504726,1722219035603,-273.799616,0.00010869,2]
[333504727,1722219035613,-151.0,0.00010869,2]
[333504728,1722219035622,-151.793864,0.00010869,2]
[333504729,1722219035631,-350.0978,0.00010869,2]
[333504730,1722219035641,-350.0978,0.00010869,2]
[333504731,1722219035651,-405.635564,0.00010869,2]
[333504732,1722219035660,-405.635564,0.00010869,2]
[333504733,1722219035670,-151.0,0.00010869,2]
[333504734,1722219035680,-281.729051,0.00010869,2]
[333504735,1722219035689,-281.729051,0.00010869,2]
[333504736,1722219035699,-151.0,0.00010869,2]
[333504737,1722219035709,-357.935926,0.00010869,2]
[333504738,1722219035718,-357.935926,0.00010869,2]
[333504739,1722219035728,-194.16932683,0.00010869,2]
[333504740,1722219035737,-60446.796747,0.00010869,2]
[333504741,1722219035751,-2049.794574,0.00010869,2]
[333504742,1722219035760,-1358.38169,0.00010869,2]
[333504743,1722219035769,-32749.98222199,0.00010869,2]
[333504744,1722219038090,-1720.75393469,0.00010869,2]
[333504745,1722219038275,-372.94911677,0.00010869,2]
[333504746,1722219038286,-3547.97188898,0.00010869,2]
[333504747,1722219038464,-16335.31858091,0.00010869,2]
[333504750,1722219038476,-473.3383626,0.00010869,2]
[333504751,1722219038488,-308.46,0.00010869,2]
[333504752,1722219038499,-600.5,0.00010869,2]
[333504824,1722219040130,-3333.07402106,0.00010869,2]
[333504825,1722219040139,-1000.0,0.00010869,2]
[333504826,1722219040149,-211.17501626,0.00010873,2]
[333504827,1722219040158,-349.223995,0.00010876,2]
[333504828,1722219040168,-151.0,0.00010876,2]
[333504829,1722219040177,-349.223995,0.00010876,2]
[333504830,1722219040186,-195.292619,0.00010876,2]
[333504831,1722219040195,-195.292619,0.00010876,2]
[333504832,1722219040205,-197.633279,0.00010876,2]
[333504833,1722219040214,-260.530924,0.00010876,2]
[333504834,1722219040224,-151.0,0.00010876,2]
[333504835,1722219040233,-195.597906,0.00010876,2]
[333504836,1722219040242,-195.597906,0.00010876,2]
[333504837,1722219040252,-151.0,0.00010876,2]
[333504838,1722219040261,-151.0,0.00010876,2]
[333504839,1722219040270,-151.0,0.00010876,2]
[333504840,1722219040279,-151.0,0.00010876,2]
[333504841,1722219040289,-153.435314,0.00010876,2]
[333504842,1722219040298,-195.100732,0.00010876,2]
[333504843,1722219040307,-182.478561,0.00010876,2]
[333504844,1722219040317,-151.0,0.00010876,2]
[333504845,1722219040326,-195.100732,0.00010876,2]
[333504846,1722219040335,-182.478561,0.00010876,2]
[333504847,1722219040344,-151.0,0.00010876,2]
[333504848,1722219040353,-151.0,0.00010876,2]
[333504849,1722219040365,-166.999661,0.00010876,2]
[333504850,1722219040375,-151.0,0.00010876,2]
[333504851,1722219040384,-168.825362,0.00010876,2]
[333504852,1722219040393,-168.825362,0.00010876,2]
[333504853,1722219040402,-432.242104,0.00010876,2]
[333504854,1722219040411,-432.242104,0.00010876,2]
[333504855,1722219040421,-151.0,0.00010876,2]
[333504856,1722219040430,-151.0,0.00010876,2]
[333504857,1722219040439,-151.0,0.00010876,2]
[333504858,1722219040448,-151.0,0.00010876,2]
[333504859,1722219040458,-182.31595,0.00010876,2]
[333504860,1722219040467,-357.373336,0.00010876,2]
[333504861,1722219040476,-151.0,0.00010876,2]
[333504862,1722219040485,-357.373336,0.00010876,2]
[333504863,1722219040495,-151.0,0.00010876,2]
[333504864,1722219040504,-274.190157,0.00010876,2]
[333504865,1722219040513,-189.339945,0.00010876,2]
[333504866,1722219040523,-189.339945,0.00010876,2]
[333504867,1722219040532,-1390.614502,0.00010876,2]
[333504868,1722219040541,-151.0,0.00010876,2]
[333504869,1722219040550,-1390.614502,0.00010876,2]
[333504870,1722219040559,-151.0,0.00010876,2]
[333504871,1722219040568,-151.0,0.00010876,2]
[333504872,1722219040577,-151.0,0.00010876,2]
[333504873,1722219040587,-273.799616,0.00010876,2]
[333504874,1722219040596,-151.0,0.00010876,2]
[333504875,1722219040606,-273.799616,0.00010876,2]
[333504876,1722219040617,-151.0,0.00010876,2]
[333504877,1722219040626,-350.0978,0.00010876,2]
[333504878,1722219040635,-350.0978,0.00010876,2]
[333504879,1722219040644,-405.635564,0.00010876,2]
[333504881,1722219040654,-405.635564,0.00010876,2]
[333504883,1722219040663,-159.855803,0.00010876,2]
[333504885,1722219040672,-281.729051,0.00010876,2]
[333504887,1722219040682,-281.729051,0.00010876,2]
[333504889,1722219040691,-151.0,0.00010876,2]
[333504891,1722219040700,-357.935926,0.00010876,2]
[333504893,1722219040710,-357.935926,0.00010876,2]
[333504895,1722219040719,-117537.21583669,0.00010876,2]
[333504897,1722219040734,-1950.0,0.00010876,2]
[333504898,1722219040748,-1665.28841432,0.00010876,2]
[333504900,1722219040759,-4699.8470805,0.00010876,2]
[333504902,1722219040769,-600.96056067,0.00010876,2]
[333504904,1722219040780,-121151.88394596,0.00010876,2]
[333504906,1722219040793,-20801.31972217,0.00010876,2]
[333504909,1722219040813,-97693.74458169,0.00010876,2]
[333504911,1722219040823,-11398.91358778,0.00010878,2]
[333504913,1722219040832,-2243.10024243,0.00010879,2]
[333504915,1722219040842,-190.53177105,0.0001088,2]
[333504916,1722219040851,-349.223995,0.00010882,2]
[333504918,1722219040860,-151.216037,0.00010882,2]
[333504920,1722219040869,-349.223995,0.00010882,2]
[333504922,1722219040879,-195.292619,0.00010882,2]
[333504924,1722219040888,-195.292619,0.00010882,2]
[333504926,1722219040897,-151.0,0.00010882,2]
[333504928,1722219040907,-195.597906,0.00010882,2]
[333504929,1722219040916,-195.597906,0.00010882,2]
[333504930,1722219040925,-151.0,0.00010882,2]
[333504931,1722219040935,-151.0,0.00010882,2]
[333504932,1722219040944,-151.0,0.00010882,2]
[333504933,1722219040954,-151.0,0.00010882,2]
[333504935,1722219040963,-195.100732,0.00010882,2]
[333504937,1722219040973,-151.0,0.00010882,2]
[333504939,1722219040982,-195.100732,0.00010882,2]
[333504941,1722219040991,-182.478561,0.00010882,2]
[333504943,1722219041001,-182.478561,0.00010882,2]
[333504945,1722219041011,-151.201346,0.00010882,2]
[333504947,1722219041021,-158.955412,0.00010882,2]
[333504949,1722219041031,-151.0,0.00010882,2]
[333504950,1722219041040,-168.825362,0.00010882,2]
[333504952,1722219041049,-168.825362,0.00010882,2]
[333504954,1722219041059,-432.242104,0.00010882,2]
[333504956,1722219041068,-432.242104,0.00010882,2]
[333504958,1722219041077,-151.0,0.00010882,2]
[333504960,1722219041087,-151.0,0.00010882,2]
[333504962,1722219041096,-151.0,0.00010882,2]
[333504964,1722219041105,-151.0,0.00010882,2]
[333504966,1722219041115,-357.373336,0.00010882,2]
[333504967,1722219041125,-151.0,0.00010882,2]
[333504969,1722219041134,-357.373336,0.00010882,2]
[333504971,1722219041144,-151.0,0.00010882,2]
[333504973,1722219041154,-189.339945,0.00010882,2]
[333504975,1722219041163,-189.339945,0.00010882,2]
[333504977,1722219041173,-1390.614502,0.00010882,2]
[333504979,1722219041182,-151.0,0.00010882,2]
[333504981,1722219041192,-1390.614502,0.00010882,2]
[333504983,1722219041201,-151.0,0.00010882,2]
[333504985,1722219041210,-334.045691,0.00010882,2]
[333504987,1722219041220,-151.0,0.00010882,2]
[333504989,1722219041230,-151.0,0.00010882,2]
[333504991,1722219041239,-273.799616,0.00010882,2]
[333504993,1722219041249,-151.21694,0.00010882,2]
[333504994,1722219041258,-273.799616,0.00010882,2]
[333504996,1722219041267,-151.0,0.00010882,2]
[333504998,1722219041277,-350.0978,0.00010882,2]
[333505000,1722219041286,-350.0978,0.00010882,2]
[333505002,1722219041295,-405.635564,0.00010882,2]
[333505004,1722219041305,-405.635564,0.00010882,2]
[333505006,1722219041314,-281.729051,0.00010882,2]
[333505008,1722219041323,-281.729051,0.00010882,2]
[333505010,1722219041332,-151.0,0.00010882,2]
[333505012,1722219041342,-357.935926,0.00010882,2]
[333505014,1722219041351,-357.935926,0.00010882,2]
[333505016,1722219041361,-61139.0384027,0.00010883,2]
[333505018,1722219041374,-259.51499015,0.00010883,2]
[333505020,1722219041385,-1661.8907034,0.00010883,2]
[333505022,1722219041407,-7595.07783008,0.00010883,2]
[333505207,1722219043270,-816.075,9.921e-05,2]
[333505209,1722219043282,-15123.39116061,9.921e-05,2]
[333505211,1722219043293,-671.5135433,9.921e-05,2]
[333505229,1722219043457,-7289.02029609,9.921e-05,2]
[333505231,1722219043467,-286.63548525,0.00010883,2]
[333505454,1722219046259,-3627.57220054,0.00010883,2]
[333505457,1722219046272,-1288.84,0.00010883,2]
[333505461,1722219046283,-1750.00000001,0.00010883,2]
[333505488,1722219046447,-988.56029065,0.00010883,2]
[333505491,1722219046458,-1355.44666446,0.00010883,2]
[333505494,1722219046469,-24953.85170472,0.00010883,2]
[333505531,1722219046634,-399.98561821,0.00010883,2]
[333505534,1722219046645,-1102.79329248,0.00010883,2]
[333505537,1722219046657,-684.60500397,0.00010883,2]
[333505604,1722220232368,-351.92,8.219e-05,2]
[333505605,1722220232377,-44.32892489,9.442e-05,2]
[333505606,1722220232388,-442.59107511,9.442e-05,2]
[333505607,1722220232397,-4654.08795425,9.442e-05,2]
[333505613,1722220235030,-645.96353436,9.442e-05,2]
[333505616,1722220235040,-250.0,9.463e-05,2]
[333505618,1722220235049,-1000.0,9.652e-05,2]
[333505619,1722220235059,-170.57,9.881e-05,2]
[333505621,1722220235074,-300.0,9.9e-05,3]
[333505623,1722220235084,-300.0,9.999e-05,2]
[333505625,1722220235093,-1307.39772233,0.0001,2]
[333505627,1722220235103,-3155.68,0.0001,2]
[333505628,1722220235113,-8090.87739611,0.0001,2]
[333505629,1722220235122,-700.0,0.0001,3]
[333505630,1722220235131,-834.07,0.00010055,2]
[333505631,1722220235144,-834.07,0.00010055,2]
[333505632,1722220235154,-833.65,0.00010055,2]
[333505633,1722220235164,-783.3,0.00010098,2]
[333505634,1722220235173,-150.0,0.00010098,2]
[333505635,1722220235182,-5130.16,0.00010099,2]
[333505636,1722220235191,-1649.31,0.00010099,2]
[333505637,1722220235200,-150.99,0.00010099,2]
[333505638,1722220235210,-179.26,0.000101,2]
[333505639,1722220235219,-1957.83,0.000101,2]
[333505640,1722220235229,-1000.0,0.000101,3]
[333505641,1722220235238,-893.63,0.00010141,2]
[333505642,1722220235248,-301.16,0.00010192,2]
[333505643,1722220235257,-714.04,0.00010192,2]
[333505644,1722220235266,-150.0,0.00010192,2]
[333505645,1722220235276,-150.0,0.00010192,2]
[333505646,1722220235285,-530.19,0.00010192,2]
[333505647,1722220235294,-530.19,0.00010192,2]
[333505648,1722220235304,-150.0,0.00010192,2]
[333505649,1722220235313,-530.19,0.00010192,2]
[333505650,1722220235324,-530.19,0.00010192,2]
[333505651,1722220235334,-530.19,0.00010192,2]
[333505652,1722220235343,-530.19,0.00010192,2]
[333505653,1722220235352,-530.19,0.00010192,2]
[333505654,1722220235362,-1400.0,0.000102,3]
[333505655,1722220235371,-420.38,0.00010241,2]
[333505656,1722220235381,-420.38,0.00010241,2]
[333505657,1722220235390,-420.38,0.00010241,2]
[333505658,1722220235399,-1800.0,0.000103,3]
[333505659,1722220235409,-624.13,0.00010341,2]
[333505660,1722220235418,-420.38,0.00010341,2]
[333505661,1722220235427,-420.38,0.00010341,2]
[333505662,1722220235437,-7126.54534884,0.00010353,2]
[333505663,1722220235446,-300.0,0.000104,3]
[333505664,1722220235456,-38278.52884147,0.00010428,2]
[333505665,1722220235465,-45546.3758,0.00010438,2]
[333505666,1722220235474,-6219.2144,0.00010438,2]
[333505667,1722220235483,-2500.0,0.00010438,2]
[333505668,1722220235492,-351.92,0.00010445,2]
[333505669,1722220235502,-300.0,0.000105,3]
[333505670,1722220235511,-325.7707,0.00010507,2]
[333505671,1722220235520,-436.1777,0.00010507,2]
[333505672,1722220235530,-2958.1206,0.00010507,2]
[333505673,1722220235539,-100000.0,0.00010538,2]
[333505674,1722220235548,-32791.3254,0.00010538,2]
[333505675,1722220235557,-1000.0,0.00010538,2]
[333505676,1722220235568,-300.0,0.000106,3]
[333505677,1722220235580,-1919.0,0.000106,2]
[333505678,1722220235589,-500.0,0.0001064,2]
[333505679,1722220235599,-624.8009,0.0001064,2]
[333505680,1722220235608,-181.29151525,0.0001068,2]
[333505681,1722220235619,-365.69448274,0.0001068,2]
[333505682,1722220235629,-365.69448271,0.00010696,2]